Cogmind - Beta 10.2 @@@ ROGUE MODE // 2021.08.16 @ 23:44:40 Player: Gilgameshx13 Result: Self-destructed Performance ------------- Evolutions (6) 3000 Regions Visited (8) 1600 Robots Destroyed (37) 185 Value Destroyed (1171) 1171 Prototype IDs (1) 20 Alien Tech Used (0) 0 Bonus (0) 0 TOTAL SCORE: 5976 Bonus ------- None Cogmind --------- Core Integrity 267/1150 Matter 197/300 Energy 100/100 System Corruption 0% Temperature Cool (0) Movement Core (300) Ox5 Location -4/Factory Parts ------- > --- POWER (3) -------- (None) > --- PROPULSION (6) --- (None) > --- UTILITY (8) ------ Large Storage Unit > --- WEAPON (2) ------- (None) > --- INVENTORY (10) --- Improved Cooling System Transmission Jammer Improved Transmission Jammer Improved ECM Suite Thermal Shield Hardlight Generator Hacking Suite Heavy Missile Launcher Peak State ------------ > --- POWER ------------ Improved Deuterium Engine Micro Nuclear Core Light Fission Core > --- PROPULSION ------- Gravmag System Cooled Airjet VTOL Module Xenon Bombardment Thruster Nuclear Pulse Thruster Field Propulsion Drive > --- UTILITY ---------- Improved Heat Sink Large Storage Unit Weight Redist. System Improved Transmission Jammer Improved Light Armor Plating Medium Insulated Plating Force Field Hacking Suite > --- WEAPON ----------- Heavy Missile Launcher > --- INVENTORY -------- Antimatter Reactor Improved Cooling System Transmission Jammer Improved ECM Suite Thermal Shield Hardlight Generator Hacking Suite Heavy Particle Cannon [Rating: 72] Favorites ----------- Power Light Nuclear Core Engine Light Ion Engine Power Core Light Nuclear Core Reactor Antimatter Reactor Propulsion Xenon Bombardment Thruster Treads Advanced Treads Wheel Compact Wheel Hover Unit Cooled Airjet Flight Unit Xenon Bombardment Thruster Utility Large Storage Unit Device Improved Heat Sink Storage Large Storage Unit Processor Advanced Terrain Scan Processor Hackware Hacking Suite Protection Insulated Plating Weapon Grenade Launcher Energy Gun Spread Laser Energy Cannon Plasma Cannon Ballistic Gun Assault Rifle Launcher Grenade Launcher Slashing Weapon Katana Build | -11 -10 -9 -9 -8 -7 -6 -5 -4 ------- Run | Scr Mat Mat Min Mat Fac Fac Fac Fac Slots Evolved 12 | . . 2 . 2 2 2 2 2 Power 2 | . . . . . . 1 . 1 Propulsion 4 | . . . . 2 . . 2 . Utility 6 | . . 2 . . 2 1 . 1 Weapon . | . . . . . . . . . Parts Attached 65 | 6 2 5 1 16 14 6 9 6 Power 12 | 1 1 1 . 2 1 2 2 2 Engine 3 | 1 . 1 . . . . . 1 Core 8 | . 1 . . 2 1 2 2 . Reactor 1 | . . . . . . . . 1 Propulsion 17 | 2 . 2 . 3 6 . 3 1 Treads 1 | . . . . 1 . . . . Leg . | . . . . . . . . . Wheel 2 | 2 . . . . . . . . Hover 7 | . . 2 . 2 2 . . 1 Flight 7 | . . . . . 4 . 3 . Utility 17 | 1 . 1 . 6 5 2 1 1 Device 7 | . . . . 3 2 . 1 1 Storage 2 | 1 . . . 1 . . . . Processor 1 | . . . . 1 . . . . Hackware 1 | . . . . . 1 . . . Protection 6 | . . 1 . 1 2 2 . . Artifact . | . . . . . . . . . Weapon 19 | 2 1 1 1 5 2 2 3 2 Energy Gun 3 | . . . . 1 1 1 . . Energy Cannon 5 | . . . . 2 . . 1 2 Ballistic Gun 2 | 2 . . . . . . . . Ballistic Cannon . | . . . . . . . . . Launcher 8 | . 1 . 1 2 1 1 2 . Special Weapon . | . . . . . . . . . Impact Weapon . | . . . . . . . . . Slashing Weapon 1 | . . 1 . . . . . . Piercing Weapon . | . . . . . . . . . Special Melee Weapon . | . . . . . . . . . Unidentified Prototypes 1 | . . . . 1 . . . . Parts Lost 36 | . . 3 3 4 4 2 2 18 Power 8 | . . 2 . 1 . . 1 4 Propulsion 14 | . . 1 2 . 4 . 1 6 Utility 9 | . . . 1 1 . 1 . 6 Weapon 5 | . . . . 2 . 1 . 2 Highest Loss Streak 18 | . . 2 5 2 2 1 1 18 Average Slot Usage (%) 73 | . 85 66 33 75 80 86 88 66 Engine 1 | . 10 5 . . . . . 3 Core 6 | . 3 2 . 5 7 13 10 5 Treads 2 | . . . . 8 2 . . . Wheel 3 | . 28 19 . . . . . . Hover 7 | . . 2 . 13 6 13 8 5 Flight 7 | . . . . . 16 13 21 13 Device 12 | . . . . 14 21 20 17 16 Storage 8 | . 14 11 11 9 7 6 5 5 Processor 1 | . . . . 5 . . . . Hackware 3 | . . . . . 7 6 5 4 Protection 5 | . . 3 . 1 8 9 11 5 Energy Gun 2 | . . . . 6 1 2 . . Energy Cannon 1 | . . . . 4 . . . . Ballistic Gun 2 | . 18 11 . . . . . . Launcher 4 | . 9 7 10 5 . . 3 3 Slashing Weapon 1 | . . 3 11 . . . . . Naked Turns . | . . . . . . . . . Heaviest Build 65 | 10 14 14 10 44 34 49 48 65 Greatest Support 42 | 26 26 26 12 26 33 30 42 30 Greatest Overweight (x) 6 | . . . 2 3 1 1 1 6 Average Overweight (x) . | . . . 1 . . 1 . 2 Largest Inventory Capacity 10 | 6 6 6 6 10 10 10 10 10 Average Capacity 8 | 5 6 6 6 8 10 10 10 10 Most Carried 10 | 6 6 6 6 10 10 10 10 9 Average Carried 7 | 3 5 5 5 7 9 9 9 7 Final Capacity 10 | 6 6 6 6 10 10 10 10 10 Final Carried 10 | 4 6 4 6 9 9 10 9 8 Class Distribution -------------------- 93% | Mutant 6% | Sprinter Dominant Class ---------------- Mutant | -10/Materials Mutant | -9/Materials Mutant | -9/Mines Mutant | -8/Materials Mutant | -7/Factory Mutant | -6/Factory Mutant | -5/Factory Mutant | -4/Factory Resources | -11 -10 -9 -9 -8 -7 -6 -5 -4 ----------- Run | Scr Mat Mat Min Mat Fac Fac Fac Fac Matter Collected 935 | 202 124 80 45 199 60 45 180 . Remotely . | . . . . . . . . . Salvage Created 936 | . 172 228 24 260 105 81 66 . Parts 71 | . 14 13 6 16 9 7 6 . Haulers Intercepted . | . . . . . . . . . Recyclers Shooed . | . . . . . . . . . Parts Field Recycled . | . . . . . . . . . Retrieved Matter . | . . . . . . . . . Parts Self-Destructed . | . . . . . . . . . Prevented . | . . . . . . . . . Kills | -11 -10 -9 -9 -8 -7 -6 -5 -4 ------- Run | Scr Mat Mat Min Mat Fac Fac Fac Fac Combat Hostiles Destroyed 35 | . 7 4 4 6 5 4 5 . Melee 1 | . . 1 . . . . . . Guns 10 | . 1 3 . 4 1 1 . . Cannons 2 | . . . . 2 . . . . AOE 22 | . 6 . 4 . 4 3 5 . Classes Destroyed 7 | . 2 2 . 3 . . . . Builder 1 | . . . . 1 . . . . Recycler 1 | . . 1 . . . . . . Swarmer 19 | . 3 . 4 . 4 3 5 . Grunt 9 | . 4 2 . 3 . . . . Duelist 2 | . . 2 . . . . . . Sentry 3 | . . . . 2 . 1 . . Hunter 2 | . . . . 1 1 . . . Best Kill Streak 5 | . 5 3 4 3 4 3 5 . Combat Bots Only 5 | . 5 2 4 2 4 3 5 . Max Kills in Single Turn 5 | . 5 1 3 1 3 1 2 . Gunslinging . | . . . . . . . . . Exploded 5 | . 5 . 3 . 3 1 2 . Melee 1 | . . 1 . . . . . . Uniques/NPCs Destroyed . | . . . . . . . . . Combat | -11 -10 -9 -9 -8 -7 -6 -5 -4 -------- Run | Scr Mat Mat Min Mat Fac Fac Fac Fac Damage Taken 4454 | . 97 467 95 924 367 323 365 1816 Core 1424 | . 16 166 42 212 56 35 14 883 Absorbed by Shields 107 | . . . . . . . . 107 Core Remaining (%) 83 | 100 93 . 48 61 92 95 98 . Volleys Fired 83 | . 7 11 3 34 11 9 8 . Largest 2 | . 2 2 1 2 1 2 1 . Hottest 160 | . 50 50 30 160 55 94 75 . Shots Fired 111 | . 12 13 3 50 11 14 8 . Gun 60 | . 9 11 . 23 9 8 . . Cannon 31 | . . . . 27 . . 4 . Launcher 20 | . 3 2 3 . 2 6 4 . Special . | . . . . . . . . . Kinetic 20 | . 9 11 . . . . . . Thermal 54 | . . . . 50 . . 4 . Explosive 20 | . 3 2 3 . 2 6 4 . Electromagnetic 17 | . . . . . 9 8 . . Robot Hit Streak 13 | . 5 6 2 13 5 4 5 . Robot Miss Streak 5 | . 2 2 3 5 2 4 3 . Penetration Max . | . . . . . . . . . Secondary Targets . | . . . . . . . . . Shots Hit Robots 80 | . 8 14 2 37 6 8 5 . Core Hits 86 | . 10 7 4 36 8 8 13 . Critical Hits . | . . . . . . . . . Critical Kills . | . . . . . . . . . Critical Parts Destroyed . | . . . . . . . . . Melee Attacks 6 | . . 6 . . . . . . Impact . | . . . . . . . . . Slashing 6 | . . 6 . . . . . . Piercing . | . . . . . . . . . Sneak Attacks 1 | . . 1 . . . . . . Combat Hostiles . | . . . . . . . . . Follow-up Attacks . | . . . . . . . . . Damage Inflicted 2809 | . 359 368 173 658 357 309 585 . Guns 554 | . 67 83 . 276 80 48 . . Cannons 482 | . . . . 382 . . 100 . Explosions 1569 | . 292 81 173 . 277 261 485 . Melee 204 | . . 204 . . . . . . Ramming . | . . . . . . . . . Kinetic 150 | . 67 83 . . . . . . Thermal 758 | . . . . 658 . . 100 . Explosive 1569 | . 292 81 173 . 277 261 485 . Electromagnetic 128 | . . . . . 80 48 . . Impact . | . . . . . . . . . Slashing 204 | . . 204 . . . . . . Piercing . | . . . . . . . . . Highest Corruption 2 | . . . . . 2 . . . Average Corruption 2 | . . . . . 2 . . . Corruption Purged . | . . . . . . . . . Effects 3 | . . . . . 3 . . . Message Errors 2 | . . . . . 2 . . . Targeting Errors 1 | . . . . . 1 . . . Overload Shots . | . . . . . . . . . Overflow Damage 131 | . 8 56 . 21 14 32 . . Projectiles 21 | . . . . 21 . . . . Explosions 54 | . 8 . . . 14 32 . . Melee 56 | . . 56 . . . . . . Knockbacks . | . . . . . . . . . Impact . | . . . . . . . . . Kinetic . | . . . . . . . . . Secondary . | . . . . . . . . . Self-Inflicted Damage 20 | . . . 20 . . . . . Shots 1 | . . . 1 . . . . . Rammed . | . . . . . . . . . Targets Rammed . | . . . . . . . . . Kicked . | . . . . . . . . . Crushed . | . . . . . . . . . Highest Temperature 603 | . 6 . . 603 8 54 130 5 Average Temperature 178 | . 4 . . 222 3 19 66 5 Received Heat Transfer 1017 | . 30 156 . 351 . 60 81 339 Effects 12 | . . . . 12 . . . . Shutdowns 1 | . . . . 1 . . . . Energy Bleed 2 | . . . . 2 . . . . Interference 4 | . . . . 4 . . . . Matter Decay 1 | . . . . 1 . . . . Damage (minor) 3 | . . . . 3 . . . . Damage (core) 1 | . . . . 1 . . . . Siege Activations . | . . . . . . . . . Robots Corrupted . | . . . . . . . . . Combat Hostiles . | . . . . . . . . . Parts Fried . | . . . . . . . . . Impact Corruptions . | . . . . . . . . . Robots Melted . | . . . . . . . . . Combat Hostiles . | . . . . . . . . . Parts Melted . | . . . . . . . . . Heat Transferred 1243 | . . . . 1095 . . 148 . Parts Sabotaged . | . . . . . . . . . Parts Stolen . | . . . . . . . . . Parts Stripped . | . . . . . . . . . Power Chain Reactions . | . . . . . . . . . Missiles Intercepted . | . . . . . . . . . Alert | -11 -10 -9 -9 -8 -7 -6 -5 -4 ------- Run | Scr Mat Mat Min Mat Fac Fac Fac Fac Peak Influence 327 | . 209 187 129 190 170 241 327 159 Initial 159 | . . 87 69 50 29 83 117 159 Average 101 | . 116 134 125 71 78 106 180 106 Maximum Alert Level 1 | . 1 . . . . 1 1 . Low Security (%) 93 | 100 69 100 100 100 100 92 54 100 Level 1 6 | . 30 . . . . 7 45 . Level 2 . | . . . . . . . . . Level 3 . | . . . . . . . . . Level 4 . | . . . . . . . . . Level 5 . | . . . . . . . . . High Security . | . . . . . . . . . Max Security . | . . . . . . . . . Squads Dispatched 4 | . . 2 . . . . 1 1 Investigation 1 | . . 1 . . . . . . Extermination . | . . . . . . . . . Reinforcement 2 | . . 1 . . . . . 1 Assault . | . . . . . . . . . Garrison 1 | . . . . . . . 1 . Intercept . | . . . . . . . . . Construction Impeded . | . . . . . . . . . Haulers Reinforced . | . . . . . . . . . Stealth | -11 -10 -9 -9 -8 -7 -6 -5 -4 --------- Run | Scr Mat Mat Min Mat Fac Fac Fac Fac Distress Signals 3 | . . 1 . 1 . . . 1 Communications Jammed . | . . . . . . . . . Distress Signals . | . . . . . . . . . Times Spotted 71 | . 8 14 4 15 9 5 8 8 Peak Tracking Total 9 | . 5 9 4 4 4 3 3 9 Tactical Retreats 2 | . . . . 1 . . . 1 Traps | -11 -10 -9 -9 -8 -7 -6 -5 -4 ------- Run | Scr Mat Mat Min Mat Fac Fac Fac Fac Traps Triggered 3 | . . 1 . . 1 1 . . Indirectly . | . . . . . . . . . Trap Hack Attempts . | . . . . . . . . . Triggered . | . . . . . . . . . Disarmed . | . . . . . . . . . Reprogrammed . | . . . . . . . . . Reused . | . . . . . . . . . Traps Extracted . | . . . . . . . . . Installed . | . . . . . . . . . Triggered . | . . . . . . . . . Machines | -11 -10 -9 -9 -8 -7 -6 -5 -4 ---------- Run | Scr Mat Mat Min Mat Fac Fac Fac Fac Machines Disabled 6 | . 1 . . . 4 . 1 . Max in Single Turn 3 | . 1 . . . 3 . 1 . Machines Sabotaged . | . . . . . . . . . Garrisons Compromised . | . . . . . . . . . Overloaded Fab Kills . | . . . . . . . . . Fab Network Shutdowns . | . . . . . . . . . Hacking | -11 -10 -9 -9 -8 -7 -6 -5 -4 --------- Run | Scr Mat Mat Min Mat Fac Fac Fac Fac Machines Accessed 1 | . 1 . . . . . . . Terminals 1 | . 1 . . . . . . . Fabricators . | . . . . . . . . . Repair Stations . | . . . . . . . . . Recycling Units . | . . . . . . . . . Scanalyzers . | . . . . . . . . . Garrison Access . | . . . . . . . . . Total Hacks 1 | . 1 . . . . . . . Successful 1 | . 1 . . . . . . . Failed . | . . . . . . . . . Catastrophic . | . . . . . . . . . Database Lockouts . | . . . . . . . . . Manual . | . . . . . . . . . Terminals 1 | . 1 . . . . . . . Fabricators . | . . . . . . . . . Repair Stations . | . . . . . . . . . Recycling Units . | . . . . . . . . . Scanalyzers . | . . . . . . . . . Garrison Access . | . . . . . . . . . Terminal Hacks 1 | . 1 . . . . . . . Emergency Access Points 1 | . 1 . . . . . . . Fabricator Hacks . | . . . . . . . . . Repair Station Hacks . | . . . . . . . . . Recycling Unit Hacks . | . . . . . . . . . Scanalyzer . | . . . . . . . . . Garrison Access Hacks . | . . . . . . . . . Unauthorized Hacks . | . . . . . . . . . Terminals . | . . . . . . . . . Fabricators . | . . . . . . . . . Repair Stations . | . . . . . . . . . Recycling Units . | . . . . . . . . . Scanalyzers . | . . . . . . . . . Garrison Access . | . . . . . . . . . Data Cores Recovered . | . . . . . . . . . Used . | . . . . . . . . . Hacking Detections 1 | . 1 . . . . . . . Full Trace Events . | . . . . . . . . . Feedback Events . | . . . . . . . . . Feedback Blocked . | . . . . . . . . . Robot Schematics Acquired . | . . . . . . . . . Robots Built . | . . . . . . . . . Matter . | . . . . . . . . . Time . | . . . . . . . . . Total Robot Build Rating . | . . . . . . . . . Part Schematics Acquired . | . . . . . . . . . Parts Built . | . . . . . . . . . Matter . | . . . . . . . . . Time . | . . . . . . . . . Total Part Build Rating . | . . . . . . . . . Parts Repaired . | . . . . . . . . . Time . | . . . . . . . . . Parts Recycled . | . . . . . . . . . Recycled Matter . | . . . . . . . . . Retrieved Matter . | . . . . . . . . . Retrieved Components . | . . . . . . . . . Parts Scanalyzed . | . . . . . . . . . Part Schematics Acquired . | . . . . . . . . . Parts Damaged . | . . . . . . . . . Bothacking | -11 -10 -9 -9 -8 -7 -6 -5 -4 ------------ Run | Scr Mat Mat Min Mat Fac Fac Fac Fac Used RIF Installer . | . . . . . . . . . Robots Hacked . | . . . . . . . . . Non-combat . | . . . . . . . . . Combat . | . . . . . . . . . Robot Hacks Applied . | . . . . . . . . . Relay Couplers Released . | . . . . . . . . . Robots Rewired . | . . . . . . . . . Allies Hacked . | . . . . . . . . . Hacks Repelled . | . . . . . . . . . Allies | -11 -10 -9 -9 -8 -7 -6 -5 -4 -------- Run | Scr Mat Mat Min Mat Fac Fac Fac Fac Total Allies . | . . . . . . . . . Largest Group . | . . . . . . . . . Highest-Rated Group . | . . . . . . . . . Highest-Rated Ally . | . . . . . . . . . Total Orders . | . . . . . . . . . Ally Attacks . | . . . . . . . . . Total Damage . | . . . . . . . . . Kills . | . . . . . . . . . Allies Corrupted . | . . . . . . . . . Allies Melted . | . . . . . . . . . Intel | -11 -10 -9 -9 -8 -7 -6 -5 -4 ------- Run | Scr Mat Mat Min Mat Fac Fac Fac Fac Robot Analysis Total . | . . . . . . . . . Derelict Logs Recovered . | . . . . . . . . . Drone Launches . | . . . . . . . . . Drone Recoveries . | . . . . . . . . . Exploration | -11 -10 -9 -9 -8 -7 -6 -5 -4 ------------- Run | Scr Mat Mat Min Mat Fac Fac Fac Fac Turns Passed 2397 | 56 164 150 342 509 504 372 182 118 Spaces Moved 1951 | 57 153 121 236 306 572 299 158 49 Core 269 | 27 . . 214 16 . . . 12 Treads 51 | . . . . 51 . . . . Legs . | . . . . . . . . . Wheels 282 | 30 153 99 . . . . . . Hover 922 | . . 22 22 239 237 299 66 37 Flight 427 | . . . . . 335 . 92 . Fastest Speed 28 | 50 90 56 56 66 31 111 28 150 Average Speed 94 | 71 90 83 141 121 51 111 84 206 Slowest Speed 350 | 90 90 90 150 200 117 111 111 350 Overloaded Moves . | . . . . . . . . . Propulsion Burnouts . | . . . . . . . . . Robots Hopped 1 | . . . . . 1 . . . Cave-ins Triggered . | . . . . . . . . . Exploration Rate (%) 19 | 3 40 21 44 29 17 13 5 2 Regions Visited 8 Branch Regions 1 Pre-discovered Areas 1 | . . . 1 . . . . . Known Exits Taken . | . . . . . . . . . Unknown Exits Taken 8 | 1 1 1 1 1 1 1 1 . Scrap Searched 2 | . . . 2 . . . . . Spaces Dug . | . . . . . . . . . Terrain Destroyed 201 | . 24 20 23 8 19 79 28 . Melee . | . . . . . . . . . Projectile 8 | . . . . 8 . . . . AOE 193 | . 24 20 23 . 19 79 28 . Terrain Rammed . | . . . . . . . . . Walls Destroyed . | . . . . . . . . . Machines Disabled . | . . . . . . . . . Actions | -11 -10 -9 -9 -8 -7 -6 -5 -4 --------- Run | Scr Mat Mat Min Mat Fac Fac Fac Fac Total 2388 | 72 167 147 241 398 776 324 198 65 Wait 188 | . . . . 6 156 3 17 6 Move 1941 | 56 152 120 235 305 569 298 157 49 Hop 1 | . . . . . 1 . . . Pick Up 70 | 10 4 3 2 26 12 7 3 3 Fast Attach . | . . . . . . . . . Attach 50 | 6 . 4 . 12 12 5 6 5 Detach 10 | . . . . . 6 . 3 1 Swap 15 | . 2 1 1 4 2 1 3 1 Drop 24 | . 2 2 . 11 7 1 1 . Fire 83 | . 7 11 3 34 11 9 8 . Melee 6 | . . 6 . . . . . . Ram . | . . . . . . . . . Kick . | . . . . . . . . . Crush . | . . . . . . . . . Escape Stasis . | . . . . . . . . . Rewire . | . . . . . . . . . Trap . | . . . . . . . . . Miscellaneous . | . . . . . . . . . Route ------- -11/Scrapyard -10/Materials -9/Materials -9/Mines -8/Materials -7/Factory -6/Factory -5/Factory -4/Factory History --------- Turn | Location | Event 4 | -11/Scrapyard | Discovered new exit (range 16) 57 | -11/Scrapyard | Entered Materials 173 | -10/Materials | Discovered new exit (range 15) 221 | -10/Materials | Entered another Materials area 221 | -9/Materials | Evolved 2 slots: Utility x2 318 | -9/Materials | Build established: Mutant 364 | -9/Materials | Discovered new exit (range 14) 371 | -9/Materials | Entered Mines 372 | -9/Mines | YI-UF0 nonchalantly dropped a Grenade Launcher on the ground 392 | -9/Mines | Core integrity fell below 50% 419 | -9/Mines | Lost 5 parts (1p3n1u) 668 | -9/Mines | A weapon hastily lodged in a ceiling crevice suddenly fell to the ground 682 | -9/Mines | Discovered new exit (range 12) 692 | -9/Mines | Learned location of Storage (-7) 713 | -9/Mines | Entered Materials 713 | -8/Materials | Evolved 2 slots: Propulsion x2 1204 | -8/Materials | Discovered new exit (range 15) 1222 | -8/Materials | Entered Factory 1222 | -7/Factory | Evolved 2 slots: Utility x2 1719 | -7/Factory | Discovered new exit (range 13) 1726 | -7/Factory | Entered another Factory area 1726 | -6/Factory | Evolved 2 slots: Power x1, Utility x1 2066 | -6/Factory | Discovered new exit (range 5) 2098 | -6/Factory | Entered another Factory area 2098 | -5/Factory | Evolved 2 slots: Propulsion x2 2246 | -5/Factory | Discovered new exit (range 4) 2254 | -5/Factory | Garrison activated, responded to threat 2280 | -5/Factory | Entered another Factory area 2280 | -4/Factory | Evolved 2 slots: Power x1, Utility x1 2383 | -4/Factory | Core integrity fell below 50% 2392 | -4/Factory | Spotted B-86 Titan 2398 | -4/Factory | Self-destructed Last Messages --------------- VTOL Module destroyed. Hvy. Particle Cannon destroyed. Force Field destroyed. Hvy. Neutron Cannon destroyed. Field Propulsion Drive destroyed. Imp. Deuterium Engine destroyed. Antimatter Reactor destroyed. Mic. Nuclear Core destroyed. Imp. Heat Sink destroyed. Weight Redist. System destroyed. ALERT: Hostiles spotted, dispatching reinforcements to Terminal F018. U-05 Engineer lays Concrete. Hacking Suite destroyed. U-05 Engineer lays Concrete. Penetrated by Slug. Slug penetrates Wall. Penetrated by Slug. U-05 Engineer lays Concrete. Slug penetrates Wall. Penetrated by Slug. Map ----- +----------------------------------------------------+ | ?????????????????????????????????????????????????? | | ?????????????????????????????????????????????????? | | ?????????????????????????????????????????????????? | | ?????????????????????????????????????????????????? | | ?????????????????????????????????????????????????? | | ?????????????????????????????????????????????????? | | ?????????????????????????????????????????????????? | | ?????????????????????????????????????????????????? | | ?????????????????????????????????????????????????? | | ?????????????????????????????????????????????????? | | ????????????????????????#????????????????????????? | | ????????????????????????Y#???????????????????????? | | ??????????????????????? ? ???????????????????? | | ??????????????????????? ? "??????????????????? | | ??????????????????????? ? """ ???????????????? | | ???################????! ? = ???????????????? | | ???# #????! # ????????????????? | | ???# #???! # #????????????????? | | ???# # ? + #????????????????? | | ???# # # #????????????????? | | ???# # # #????????????????? | | ???####+##### # """ # #????????????????? | | ???# # # ! """ # #????????????????? | | ???# # # """ # #??? ????????????? | | ???# # # # #? ????????????? | | ???# # # """@# # ?????????????? | | ???# # # """ g + ???????????????? | | ???# # #! """ #gg #????????????????? | | ???# # # # u #????????????????? | | ???# # ######### u #????????????????? | | ???# # #????????????????? | | ???########## #????????????????? | | ????????????# #????????????????? | | ????????????# #????????????????? | | ????????????# #????????????????? | | ????????????######## ########????????????????? | | ???????????????????# #???????????????????????? | | ???????????????????# #???????????????????????? | | ???????????????????# #???????????????????????? | | ???????????????????# #???????????????????????? | | ???????????????????# #???????????????????????? | | ???????????????????# #???????????????????????? | | ???????????????????# #???????????????????????? | | ???????????????????# #???????????????????????? | | ???????????????????# #???????????????????????? | | ???????????????????+ #???????????????????????? | | ???????????????????? ????????????????????????? | | ?????????????????????????????????????????????????? | | ?????????????????????????????????????????????????? | | ?????????????????????????????????????????????????? | +----------------------------------------------------+ Best States ------------- Heat Dissipation 57 Energy Generation 42 Energy Capacity 565 Matter Stores 300 Matter Capacity 300 Sight Range 16 Terrain Scan Density 210 Jamming Range 12 Additional Mass Support 6 Armor Coverage 375 Resistance: EM 20 Core Shielding 20 Evasion (%) 64 Recoil Reduction 1 Offensive Hacking 10 Item Schematics ----------------- None Robot Schematics ------------------ None Fabricated ------------ Nothing Alien Tech Used ----------------- None Achievements -------------- None Challenges ------------ None Game ------ Seed HeartTerrabombAmplifier Manual? 0 Play Time 00:33:48 Cumulative 21.9 hours Start 2021.08.16 @ 23:11:16 End 2021.08.16 @ 23:44:40 Sessions 3 Manual Loads 0 Difficulty Rogue Special Mode None Game No. 58 Rogue 38 Adventurer 20 Explorer 0 Win Type - Total 1 Types 1/0/0/0/0/0/0/0/0 Lore% 18 Gallery% 42 Achievement% 30 Wizard Run 0 Options --------- ASCII 0 Keyboard 0 Movement Numpad Keybinds 0 Fullscreen 1 Font 18/SmallcapsGlow Map View 76x50 Tactical HUD 0 Map Filters NONE Filters NONE Steam 1 RUN: ba6109f5-df7f-470c-9dbe-93d31fa59dc6